[Event "Titled Tuesday Blitz November 01 Late 2022"]
[White "Hughes, Tyler B"]
[Black "Petrova, Irina"]
[WhiteFideId "2026775"]
[BlackFideId "14124122"]
[WhiteElo "2291"]
[BlackElo "2023"]
[Result "0-1"]
[Round "07"]
[TimeControl "180+1"]
[Date "2022.11.02"]
[WhiteClock "0:00:01"]
[BlackClock "0:00:30"]

1. d4 {[%clk 0:03:00]}  d6 {[%clk 0:03:00]} 2. c4 {[%clk 0:02:59]}  e5 {[%clk 0:03:00]} 3. d5 {[%clk 0:02:59]}  Be7 {[%clk 0:02:59]} 4. Nf3 {[%clk 0:02:58]}  a5 {[%clk 0:03:00]} 5. e4 {[%clk 0:02:40]}  Na6 {[%clk 0:02:59]} 6. Be2 {[%clk 0:02:23]}  Nc5 {[%clk 0:02:57]} 7. Nc3 {[%clk 0:02:23]}  f5 {[%clk 0:02:57]} 8. exf5 {[%clk 0:02:11]}  Bxf5 {[%clk 0:02:58]} 9. O-O {[%clk 0:02:10]}  Nf6 {[%clk 0:02:56]} 10. Be3 {[%clk 0:02:10]}  b6 {[%clk 0:02:54]} 11. a3 {[%clk 0:01:44]}  O-O {[%clk 0:02:48]} 12. b4 {[%clk 0:01:41]}  axb4 {[%clk 0:02:49]} 13. axb4 {[%clk 0:01:38]}  Rxa1 {[%clk 0:02:50]} 14. Qxa1 {[%clk 0:01:31]}  Nce4 {[%clk 0:02:49]} 15. Nxe4 {[%clk 0:01:21]}  Nxe4 {[%clk 0:02:50]} 16. Bd3 {[%clk 0:00:58]}  Ng5 {[%clk 0:01:55]} 17. Nxg5 {[%clk 0:00:55]}  Bxg5 {[%clk 0:01:49]} 18. Bxg5 {[%clk 0:00:46]}  Qxg5 {[%clk 0:01:50]} 19. Bxf5 {[%clk 0:00:46]}  Qxf5 {[%clk 0:01:48]} 20. Qa7 {[%clk 0:00:44]}  Qf7 {[%clk 0:01:48]} 21. Qb7 {[%clk 0:00:28]}  e4 {[%clk 0:01:42]} 22. f3 {[%clk 0:00:17]}  h6 {[%clk 0:01:25]} 23. Qa6 {[%clk 0:00:09]}  Qf6 {[%clk 0:01:18]} 24. Qa2 {[%clk 0:00:03]}  Qd4+ {[%clk 0:01:10]} 25. Kh1 {[%clk 0:00:04]}  exf3 {[%clk 0:01:05]} 26. gxf3 {[%clk 0:00:03]}  Qd3 {[%clk 0:01:00]} 27. Rf2 {[%clk 0:00:03]}  Rxf3 {[%clk 0:00:41]} 28. Rxf3 {[%clk 0:00:04]}  Qxf3+ {[%clk 0:00:41]} 29. Kg1 {[%clk 0:00:05]}  Qe3+ {[%clk 0:00:40]} 30. Kg2 {[%clk 0:00:05]}  Qe4+ {[%clk 0:00:37]} 31. Kg1 {[%clk 0:00:05]}  Kh7 {[%clk 0:00:37]} 32. Kf2 {[%clk 0:00:03]}  Qf4+ {[%clk 0:00:36]} 33. Kg1 {[%clk 0:00:03]}  Qc1+ {[%clk 0:00:35]} 34. Kg2 {[%clk 0:00:02]}  Qc3 {[%clk 0:00:30]} 35. Qb1+ {[%clk 0:00:01]}  g6 {[%clk 0:00:30]} 0-1


[Site "https://www.chess.com"]

[Event "Titled Tuesday Blitz November 01 Late 2022"]
[White "Ivic, Velimir"]
[Black "Szpar, Milosz"]
[WhiteFideId "950122"]
[BlackFideId "1184989"]
[WhiteElo "2625"]
[BlackElo "2422"]
[Result "1-0"]
[Round "07"]
[TimeControl "180+1"]
[Date "2022.11.01"]
[WhiteClock "0:02:38"]
[BlackClock "0:01:10"]

1. c4 {[%clk 0:03:00]}  e5 {[%clk 0:02:55]} 2. Nc3 {[%clk 0:02:59]}  Nf6 {[%clk 0:02:52]} 3. Nf3 {[%clk 0:02:59]}  Nc6 {[%clk 0:02:51]} 4. e3 {[%clk 0:03:00]}  Bb4 {[%clk 0:02:48]} 5. Qc2 {[%clk 0:03:01]}  Bxc3 {[%clk 0:02:48]} 6. bxc3 {[%clk 0:03:02]}  d6 {[%clk 0:02:40]} 7. d3 {[%clk 0:03:02]}  O-O {[%clk 0:02:28]} 8. e4 {[%clk 0:03:02]}  a6 {[%clk 0:02:29]} 9. a4 {[%clk 0:03:01]}  Rb8 {[%clk 0:02:26]} 10. g3 {[%clk 0:03:01]}  b5 {[%clk 0:02:23]} 11. axb5 {[%clk 0:03:02]}  axb5 {[%clk 0:02:24]} 12. cxb5 {[%clk 0:03:03]}  Rxb5 {[%clk 0:02:24]} 13. Bg2 {[%clk 0:03:03]}  Be6 {[%clk 0:02:24]} 14. O-O {[%clk 0:03:04]}  h6 {[%clk 0:02:15]} 15. d4 {[%clk 0:03:01]}  Bc4 {[%clk 0:02:03]} 16. Re1 {[%clk 0:03:01]}  Qb8 {[%clk 0:01:58]} 17. Nd2 {[%clk 0:02:57]}  Bb3 {[%clk 0:01:53]} 18. Qd3 {[%clk 0:02:57]}  exd4 {[%clk 0:01:32]} 19. cxd4 {[%clk 0:02:52]}  d5 {[%clk 0:01:33]} 20. e5 {[%clk 0:02:47]}  Nd7 {[%clk 0:01:32]} 21. Ra3 {[%clk 0:02:40]}  Bc4 {[%clk 0:01:19]} 22. Nxc4 {[%clk 0:02:40]}  dxc4 {[%clk 0:01:19]} 23. Qxc4 {[%clk 0:02:41]}  Nb4 {[%clk 0:01:16]} 24. e6 {[%clk 0:02:40]}  fxe6 {[%clk 0:01:10]} 25. Qxe6+ {[%clk 0:02:41]}  Rf7 {[%clk 0:01:11]} 26. Ra8 {[%clk 0:02:37]}  Qxa8 {[%clk 0:01:10]} 27. Bxa8 {[%clk 0:02:38]} 1-0


[Site "https://www.chess.com"]

[Event "Titled Tuesday Blitz November 01 Late 2022"]
[White "Jaferian, Koosha"]
[Black "Roman, Rodrigo"]
[WhiteFideId "12507440"]
[BlackFideId "3701220"]
[WhiteElo "2127"]
[BlackElo "2001"]
[Result "1-0"]
[Round "07"]
[TimeControl "180+1"]
[Date "2022.11.02"]
[WhiteClock "0:00:07"]
[BlackClock "0:00:02"]

1. Nf3 {[%clk 0:03:00]}  Nf6 {[%clk 0:02:54]} 2. b3 {[%clk 0:03:01]}  b6 {[%clk 0:02:50]} 3. g3 {[%clk 0:03:01]}  Bb7 {[%clk 0:02:50]} 4. Bg2 {[%clk 0:03:02]}  e6 {[%clk 0:02:50]} 5. Bb2 {[%clk 0:03:02]}  Be7 {[%clk 0:02:41]} 6. O-O {[%clk 0:03:01]}  O-O {[%clk 0:02:42]} 7. c4 {[%clk 0:03:01]}  c5 {[%clk 0:02:41]} 8. d4 {[%clk 0:03:01]}  cxd4 {[%clk 0:02:38]} 9. Nxd4 {[%clk 0:03:02]}  Bxg2 {[%clk 0:02:37]} 10. Kxg2 {[%clk 0:03:03]}  Nc6 {[%clk 0:02:38]} 11. Nc3 {[%clk 0:03:00]}  Rc8 {[%clk 0:02:33]} 12. Ndb5 {[%clk 0:02:58]}  d6 {[%clk 0:02:30]} 13. Ba3 {[%clk 0:02:55]}  Ne8 {[%clk 0:02:29]} 14. Ne4 {[%clk 0:02:50]}  d5 {[%clk 0:02:25]} 15. Bxe7 {[%clk 0:02:49]}  Nxe7 {[%clk 0:02:22]} 16. cxd5 {[%clk 0:02:50]}  exd5 {[%clk 0:02:22]} 17. Nd2 {[%clk 0:02:40]}  a6 {[%clk 0:02:22]} 18. Nd4 {[%clk 0:02:41]}  Nd6 {[%clk 0:02:21]} 19. N2f3 {[%clk 0:02:41]}  Ne4 {[%clk 0:02:18]} 20. Qd3 {[%clk 0:02:39]}  b5 {[%clk 0:02:18]} 21. Rac1 {[%clk 0:02:39]}  Qa5 {[%clk 0:02:17]} 22. Ne5 {[%clk 0:02:09]}  Qxa2 {[%clk 0:01:59]} 23. Rxc8 {[%clk 0:01:51]}  Rxc8 {[%clk 0:01:58]} 24. Qf3 {[%clk 0:01:51]}  f6 {[%clk 0:01:51]} 25. Nd3 {[%clk 0:01:12]}  Qa3 {[%clk 0:01:24]} 26. Qe3 {[%clk 0:01:10]}  Qd6 {[%clk 0:01:22]} 27. Ra1 {[%clk 0:01:06]}  g6 {[%clk 0:01:13]} 28. f3 {[%clk 0:00:56]}  Ng5 {[%clk 0:01:11]} 29. h4 {[%clk 0:00:56]}  Nf7 {[%clk 0:01:11]} 30. h5 {[%clk 0:00:54]}  Ne5 {[%clk 0:01:11]} 31. Nf4 {[%clk 0:00:52]}  g5 {[%clk 0:01:06]} 32. Nfe6 {[%clk 0:00:50]}  Nf5 {[%clk 0:01:06]} 33. Nxf5 {[%clk 0:00:42]}  Qxe6 {[%clk 0:01:06]} 34. g4 {[%clk 0:00:43]}  Rc2 {[%clk 0:00:52]} 35. Nd4 {[%clk 0:00:37]}  Qc8 {[%clk 0:00:44]} 36. Nxc2 {[%clk 0:00:37]}  Qxc2 {[%clk 0:00:45]} 37. Rxa6 {[%clk 0:00:38]}  d4 {[%clk 0:00:42]} 38. Qe4 {[%clk 0:00:32]}  Qxe4 {[%clk 0:00:42]} 39. fxe4 {[%clk 0:00:33]}  Nxg4 {[%clk 0:00:42]} 40. Rb6 {[%clk 0:00:31]}  Kf7 {[%clk 0:00:28]} 41. Rxb5 {[%clk 0:00:31]}  Ke6 {[%clk 0:00:28]} 42. Rb7 {[%clk 0:00:31]}  h6 {[%clk 0:00:28]} 43. b4 {[%clk 0:00:28]}  Kd6 {[%clk 0:00:23]} 44. Kh3 {[%clk 0:00:17]}  Nf2+ {[%clk 0:00:22]} 45. Kg2 {[%clk 0:00:17]}  Ng4 {[%clk 0:00:19]} 46. Rb6+ {[%clk 0:00:16]}  Kd7 {[%clk 0:00:14]} 47. b5 {[%clk 0:00:16]}  Kc7 {[%clk 0:00:12]} 48. Rc6+ {[%clk 0:00:17]}  Kb7 {[%clk 0:00:13]} 49. Rd6 {[%clk 0:00:16]}  Kc7 {[%clk 0:00:10]} 50. Rxd4 {[%clk 0:00:16]}  Kb6 {[%clk 0:00:11]} 51. Rd8 {[%clk 0:00:09]}  Kxb5 {[%clk 0:00:10]} 52. Rg8 {[%clk 0:00:10]}  Kc5 {[%clk 0:00:10]} 53. Rg6 {[%clk 0:00:09]}  Kd4 {[%clk 0:00:10]} 54. Kg3 {[%clk 0:00:09]}  Ne5 {[%clk 0:00:06]} 55. Rxh6 {[%clk 0:00:10]}  Kxe4 {[%clk 0:00:03]} 56. Rh8 {[%clk 0:00:10]}  Kf5 {[%clk 0:00:02]} 57. Re8 {[%clk 0:00:09]}  Nf7 {[%clk 0:00:02]} 58. Re7 {[%clk 0:00:08]}  Nh6 {[%clk 0:00:02]} 59. e4# {[%clk 0:00:07]} 1-0


[Site "https://www.chess.com"]

[Event "Titled Tuesday Blitz November 01 Late 2022"]
[White "Kanyamarala, Tarun"]
[Black "Taboas Rodriguez, Daniel"]
[WhiteFideId "45004714"]
[BlackFideId "2208466"]
[WhiteElo "2307"]
[BlackElo "2429"]
[Result "0-1"]
[Round "07"]
[TimeControl "180+1"]
[Date "2022.11.02"]
[WhiteClock "0:02:06"]
[BlackClock "0:02:06"]

1. e4 {[%clk 0:03:00]}  e5 {[%clk 0:02:59]} 2. Nf3 {[%clk 0:03:00]}  Nc6 {[%clk 0:03:00]} 3. d4 {[%clk 0:02:59]}  exd4 {[%clk 0:02:59]} 4. Nxd4 {[%clk 0:02:59]}  Nf6 {[%clk 0:02:59]} 5. Nc3 {[%clk 0:02:57]}  Bb4 {[%clk 0:02:58]} 6. Nxc6 {[%clk 0:02:56]}  bxc6 {[%clk 0:02:58]} 7. Bd3 {[%clk 0:02:55]}  d5 {[%clk 0:02:57]} 8. exd5 {[%clk 0:02:55]}  O-O {[%clk 0:02:57]} 9. O-O {[%clk 0:02:55]}  cxd5 {[%clk 0:02:58]} 10. Bg5 {[%clk 0:02:54]}  c6 {[%clk 0:02:57]} 11. Qf3 {[%clk 0:02:51]}  h6 {[%clk 0:02:51]} 12. Bxf6 {[%clk 0:02:50]}  Qxf6 {[%clk 0:02:52]} 13. Qxf6 {[%clk 0:02:49]}  gxf6 {[%clk 0:02:52]} 14. Ne2 {[%clk 0:02:50]}  Re8 {[%clk 0:02:49]} 15. Nd4 {[%clk 0:02:43]}  Bd7 {[%clk 0:02:49]} 16. c3 {[%clk 0:02:37]}  Bd6 {[%clk 0:02:48]} 17. Bf5 {[%clk 0:02:36]}  Bxf5 {[%clk 0:02:30]} 18. Nxf5 {[%clk 0:02:37]}  Bf8 {[%clk 0:02:30]} 19. Rfe1 {[%clk 0:02:36]}  Re5 {[%clk 0:02:30]} 20. g4 {[%clk 0:02:33]}  Rae8 {[%clk 0:02:29]} 21. Kf1 {[%clk 0:02:33]}  Kh7 {[%clk 0:02:20]} 22. Re3 {[%clk 0:02:28]}  Kg6 {[%clk 0:02:20]} 23. Rae1 {[%clk 0:02:26]}  h5 {[%clk 0:02:20]} 24. h3 {[%clk 0:02:26]}  hxg4 {[%clk 0:02:18]} 25. hxg4 {[%clk 0:02:26]}  Kg5 {[%clk 0:02:17]} 26. f3 {[%clk 0:02:19]}  Kf4 {[%clk 0:02:09]} 27. Kf2 {[%clk 0:02:18]}  Bc5 {[%clk 0:02:05]} 28. Nd4 {[%clk 0:02:06]}  Bxd4 {[%clk 0:02:05]} 29. cxd4 {[%clk 0:02:06]}  Rxe3 {[%clk 0:02:06]} 0-1


[Site "https://www.chess.com"]

[Event "Titled Tuesday Blitz November 01 Late 2022"]
[White "Khripachenko, Alexander"]
[Black "Kirillov, Dmitry"]
[WhiteFideId "54184975"]
[BlackFideId "34180572"]
[WhiteElo "2672"]
[BlackElo "2538"]
[Result "1/2-1/2"]
[Round "07"]
[TimeControl "180+1"]
[Date "2022.11.02"]
[WhiteClock "0:00:06"]
[BlackClock "0:00:08"]

1. e4 {[%clk 0:03:00]}  c5 {[%clk 0:02:53]} 2. Nf3 {[%clk 0:03:00]}  d6 {[%clk 0:02:54]} 3. d4 {[%clk 0:02:59]}  cxd4 {[%clk 0:02:54]} 4. Qxd4 {[%clk 0:02:59]}  Nc6 {[%clk 0:02:52]} 5. Qe3 {[%clk 0:02:59]}  g6 {[%clk 0:02:50]} 6. h3 {[%clk 0:02:58]}  Bg7 {[%clk 0:02:51]} 7. Be2 {[%clk 0:02:58]}  Nf6 {[%clk 0:02:50]} 8. O-O {[%clk 0:02:59]}  O-O {[%clk 0:02:51]} 9. c4 {[%clk 0:02:59]}  Nd7 {[%clk 0:02:50]} 10. Nc3 {[%clk 0:02:59]}  b6 {[%clk 0:02:49]} 11. Rd1 {[%clk 0:02:59]}  Bb7 {[%clk 0:02:48]} 12. Rb1 {[%clk 0:02:59]}  Rc8 {[%clk 0:02:46]} 13. b4 {[%clk 0:02:59]}  Nce5 {[%clk 0:02:44]} 14. Nxe5 {[%clk 0:02:56]}  Nxe5 {[%clk 0:02:45]} 15. c5 {[%clk 0:02:55]}  Ba8 {[%clk 0:01:48]} 16. cxd6 {[%clk 0:02:44]}  exd6 {[%clk 0:01:44]} 17. Bb2 {[%clk 0:02:42]}  Qe7 {[%clk 0:01:39]} 18. Nd5 {[%clk 0:02:38]}  Bxd5 {[%clk 0:01:38]} 19. exd5 {[%clk 0:02:21]}  Qh4 {[%clk 0:01:28]} 20. Rd4 {[%clk 0:01:55]}  Qd8 {[%clk 0:01:16]} 21. Qb3 {[%clk 0:01:44]}  Re8 {[%clk 0:01:15]} 22. Ba6 {[%clk 0:01:41]}  Rc7 {[%clk 0:00:58]} 23. Rdd1 {[%clk 0:01:41]}  Qg5 {[%clk 0:00:45]} 24. Bc1 {[%clk 0:01:05]}  Qd8 {[%clk 0:00:33]} 25. Bf4 {[%clk 0:01:03]}  Qf6 {[%clk 0:00:30]} 26. Bg3 {[%clk 0:01:02]}  Rce7 {[%clk 0:00:25]} 27. Rbc1 {[%clk 0:01:02]}  h5 {[%clk 0:00:23]} 28. Bb5 {[%clk 0:01:01]}  Rd8 {[%clk 0:00:21]} 29. h4 {[%clk 0:00:56]}  Bh6 {[%clk 0:00:21]} 30. Rc2 {[%clk 0:00:53]}  Bf4 {[%clk 0:00:20]} 31. Bxf4 {[%clk 0:00:51]}  Qxf4 {[%clk 0:00:21]} 32. Qg3 {[%clk 0:00:42]}  Qxg3 {[%clk 0:00:12]} 33. fxg3 {[%clk 0:00:41]}  Ng4 {[%clk 0:00:13]} 34. Rdc1 {[%clk 0:00:42]}  Re4 {[%clk 0:00:10]} 35. a3 {[%clk 0:00:41]}  Re3 {[%clk 0:00:10]} 36. Rc3 {[%clk 0:00:40]}  Re5 {[%clk 0:00:05]} 37. Bc6 {[%clk 0:00:38]}  Nf6 {[%clk 0:00:03]} 38. Rd3 {[%clk 0:00:38]}  Kg7 {[%clk 0:00:03]} 39. a4 {[%clk 0:00:38]}  Rc8 {[%clk 0:00:04]} 40. Rf1 {[%clk 0:00:38]}  Rc7 {[%clk 0:00:04]} 41. a5 {[%clk 0:00:37]}  Ne4 {[%clk 0:00:02]} 42. axb6 {[%clk 0:00:36]}  axb6 {[%clk 0:00:03]} 43. Ra3 {[%clk 0:00:37]}  Nd2 {[%clk 0:00:02]} 44. Rf4 {[%clk 0:00:37]}  Ne4 {[%clk 0:00:02]} 45. Kh2 {[%clk 0:00:35]}  g5 {[%clk 0:00:02]} 46. hxg5 {[%clk 0:00:35]}  Nxg5 {[%clk 0:00:03]} 47. Ra6 {[%clk 0:00:33]}  Ne4 {[%clk 0:00:01]} 48. Rxb6 {[%clk 0:00:32]}  Nf6 {[%clk 0:00:02]} 49. Kh3 {[%clk 0:00:10]}  Nxd5 {[%clk 0:00:01]} 50. Bxd5 {[%clk 0:00:09]}  Rxd5 {[%clk 0:00:02]} 51. Kh4 {[%clk 0:00:07]}  Rc1 {[%clk 0:00:03]} 52. g4 {[%clk 0:00:06]}  Rh1+ {[%clk 0:00:03]} 53. Kg3 {[%clk 0:00:06]}  Rd3+ {[%clk 0:00:03]} 54. Kf2 {[%clk 0:00:06]}  h4 {[%clk 0:00:03]} 55. Ke2 {[%clk 0:00:06]}  Rhd1 {[%clk 0:00:02]} 56. Rf3 {[%clk 0:00:04]}  R1d2+ {[%clk 0:00:02]} 57. Ke1 {[%clk 0:00:05]}  Rd1+ {[%clk 0:00:03]} 58. Ke2 {[%clk 0:00:04]}  R1d2+ {[%clk 0:00:03]} 59. Kf1 {[%clk 0:00:05]}  Rd1+ {[%clk 0:00:04]} 60. Kf2 {[%clk 0:00:05]}  R3d2+ {[%clk 0:00:04]} 61. Ke3 {[%clk 0:00:05]}  Rd3+ {[%clk 0:00:05]} 62. Kf4 {[%clk 0:00:05]}  Rxf3+ {[%clk 0:00:06]} 63. gxf3 {[%clk 0:00:05]}  h3 {[%clk 0:00:05]} 64. Kg3 {[%clk 0:00:06]}  Rd3 {[%clk 0:00:04]} 65. b5 {[%clk 0:00:02]}  h2 {[%clk 0:00:04]} 66. Kxh2 {[%clk 0:00:02]}  Rxf3 {[%clk 0:00:05]} 67. Rxd6 {[%clk 0:00:02]}  Rb3 {[%clk 0:00:06]} 68. b6 {[%clk 0:00:02]}  f6 {[%clk 0:00:05]} 69. Kg2 {[%clk 0:00:02]}  Kg6 {[%clk 0:00:06]} 70. Rc6 {[%clk 0:00:03]}  Kg5 {[%clk 0:00:06]} 71. Rc4 {[%clk 0:00:02]}  Rxb6 {[%clk 0:00:06]} 72. Kf3 {[%clk 0:00:03]}  Rb3+ {[%clk 0:00:06]} 73. Kf2 {[%clk 0:00:04]}  Ra3 {[%clk 0:00:06]} 74. Kg2 {[%clk 0:00:04]}  Rb3 {[%clk 0:00:06]} 75. Kf2 {[%clk 0:00:05]}  Rb2+ {[%clk 0:00:07]} 76. Kf3 {[%clk 0:00:05]}  Rb3+ {[%clk 0:00:08]} 77. Kf2 {[%clk 0:00:06]} 1/2-1/2


[Site "https://www.chess.com"]

[Event "Titled Tuesday Blitz November 01 Late 2022"]
[White "Kodinets, Konstantin L."]
[Black "Korchmar, Vasiliy"]
[WhiteFideId "4122011"]
[BlackFideId "24131750"]
[WhiteElo "2569"]
[BlackElo "2687"]
[Result "0-1"]
[Round "07"]
[TimeControl "180+1"]
[Date "2022.11.02"]
[WhiteClock "0:00:01"]
[BlackClock "0:00:31"]

1. d4 {[%clk 0:03:00]}  d5 {[%clk 0:02:59]} 2. Nf3 {[%clk 0:03:01]}  Nf6 {[%clk 0:02:59]} 3. Bf4 {[%clk 0:03:01]}  c5 {[%clk 0:02:59]} 4. e3 {[%clk 0:03:02]}  Nc6 {[%clk 0:02:59]} 5. c3 {[%clk 0:03:02]}  Qb6 {[%clk 0:02:58]} 6. Qc2 {[%clk 0:03:03]}  Bg4 {[%clk 0:02:57]} 7. Nbd2 {[%clk 0:03:02]}  e6 {[%clk 0:02:57]} 8. Be2 {[%clk 0:03:01]}  Rc8 {[%clk 0:02:55]} 9. Qb3 {[%clk 0:03:00]}  Be7 {[%clk 0:02:53]} 10. h3 {[%clk 0:02:59]}  Bh5 {[%clk 0:02:53]} 11. O-O {[%clk 0:02:58]}  O-O {[%clk 0:02:53]} 12. Rfe1 {[%clk 0:02:57]}  Rfe8 {[%clk 0:02:51]} 13. Bh2 {[%clk 0:02:56]}  h6 {[%clk 0:02:49]} 14. Bf1 {[%clk 0:02:48]}  Nd7 {[%clk 0:02:49]} 15. Bb5 {[%clk 0:01:49]}  a6 {[%clk 0:02:42]} 16. Bxc6 {[%clk 0:01:48]}  Qxc6 {[%clk 0:02:43]} 17. a4 {[%clk 0:01:47]}  b6 {[%clk 0:02:38]} 18. Ne5 {[%clk 0:01:44]}  Nxe5 {[%clk 0:02:36]} 19. Bxe5 {[%clk 0:01:45]}  Ra8 {[%clk 0:02:31]} 20. Bg3 {[%clk 0:01:40]}  c4 {[%clk 0:02:28]} 21. Qc2 {[%clk 0:01:39]}  b5 {[%clk 0:02:29]} 22. axb5 {[%clk 0:01:32]}  axb5 {[%clk 0:02:30]} 23. b4 {[%clk 0:01:31]}  Bg6 {[%clk 0:02:19]} 24. Qb2 {[%clk 0:01:28]}  Ra4 {[%clk 0:02:15]} 25. Rxa4 {[%clk 0:01:27]}  bxa4 {[%clk 0:02:15]} 26. Ra1 {[%clk 0:01:27]}  Ra8 {[%clk 0:02:15]} 27. Nf3 {[%clk 0:01:25]}  f6 {[%clk 0:02:14]} 28. Ra3 {[%clk 0:01:19]}  Qb5 {[%clk 0:02:12]} 29. Qc1 {[%clk 0:01:18]}  Be4 {[%clk 0:02:07]} 30. Nd2 {[%clk 0:01:17]}  Bd3 {[%clk 0:02:07]} 31. h4 {[%clk 0:01:09]}  Kf7 {[%clk 0:01:55]} 32. h5 {[%clk 0:01:07]}  Kg8 {[%clk 0:01:53]} 33. Nf3 {[%clk 0:01:01]}  Qe8 {[%clk 0:01:50]} 34. Qd1 {[%clk 0:00:58]}  Kh7 {[%clk 0:01:41]} 35. Nh2 {[%clk 0:00:57]}  Kh8 {[%clk 0:01:37]} 36. Bf4 {[%clk 0:00:46]}  Bh7 {[%clk 0:01:36]} 37. g4 {[%clk 0:00:46]}  Bf8 {[%clk 0:01:31]} 38. Bg3 {[%clk 0:00:44]}  Be4 {[%clk 0:01:29]} 39. f3 {[%clk 0:00:42]}  Bd3 {[%clk 0:01:29]} 40. Nf1 {[%clk 0:00:26]}  e5 {[%clk 0:01:29]} 41. Kf2 {[%clk 0:00:22]}  Ra6 {[%clk 0:01:15]} 42. Nd2 {[%clk 0:00:21]}  exd4 {[%clk 0:01:11]} 43. exd4 {[%clk 0:00:21]}  Re6 {[%clk 0:01:12]} 44. Bf4 {[%clk 0:00:18]}  Re2+ {[%clk 0:01:10]} 45. Kg3 {[%clk 0:00:19]}  Re1 {[%clk 0:01:06]} 46. Qxa4 {[%clk 0:00:14]}  Qe2 {[%clk 0:01:06]} 47. Ra1 {[%clk 0:00:10]}  Bc2 {[%clk 0:00:44]} 48. Qa8 {[%clk 0:00:05]}  Kh7 {[%clk 0:00:34]} 49. Rxe1 {[%clk 0:00:04]}  Qxe1+ {[%clk 0:00:34]} 50. Kg2 {[%clk 0:00:05]}  Bd6 {[%clk 0:00:30]} 51. Bxd6 {[%clk 0:00:02]}  Qxd2+ {[%clk 0:00:31]} 52. Kg3 {[%clk 0:00:01]}  Qe1+ {[%clk 0:00:31]} 0-1


[Site "https://www.chess.com"]

[Event "Titled Tuesday Blitz November 01 Late 2022"]
[White "Kravtsiv, Martyn"]
[Black "Kleiman, Jake"]
[WhiteFideId "14113147"]
[BlackFideId "2020041"]
[WhiteElo "2796"]
[BlackElo "2614"]
[Result "0-1"]
[Round "07"]
[TimeControl "180+1"]
[Date "2022.11.02"]
[WhiteClock "0:00:02"]
[BlackClock "0:00:29"]

1. e4 {[%clk 0:03:00]}  e5 {[%clk 0:03:00]} 2. Nf3 {[%clk 0:03:00]}  Nc6 {[%clk 0:03:00]} 3. Nc3 {[%clk 0:03:00]}  Nf6 {[%clk 0:03:00]} 4. a4 {[%clk 0:03:00]}  Bb4 {[%clk 0:02:58]} 5. Bd3 {[%clk 0:02:59]}  O-O {[%clk 0:02:58]} 6. O-O {[%clk 0:02:58]}  a6 {[%clk 0:02:57]} 7. Nd5 {[%clk 0:02:55]}  Bc5 {[%clk 0:02:54]} 8. c3 {[%clk 0:02:55]}  d6 {[%clk 0:02:55]} 9. Bc2 {[%clk 0:02:49]}  Ba7 {[%clk 0:02:52]} 10. d4 {[%clk 0:02:41]}  h6 {[%clk 0:02:52]} 11. Re1 {[%clk 0:02:24]}  Bg4 {[%clk 0:02:43]} 12. Be3 {[%clk 0:02:22]}  exd4 {[%clk 0:02:38]} 13. cxd4 {[%clk 0:02:18]}  Nxd5 {[%clk 0:02:36]} 14. exd5 {[%clk 0:02:18]}  Nb4 {[%clk 0:02:29]} 15. Be4 {[%clk 0:02:17]}  Re8 {[%clk 0:02:25]} 16. Bd2 {[%clk 0:02:16]}  a5 {[%clk 0:02:21]} 17. h3 {[%clk 0:01:57]}  Bxf3 {[%clk 0:02:06]} 18. Qxf3 {[%clk 0:01:56]}  Bxd4 {[%clk 0:02:06]} 19. Bc3 {[%clk 0:01:18]}  Bxc3 {[%clk 0:01:54]} 20. bxc3 {[%clk 0:01:17]}  Na6 {[%clk 0:01:54]} 21. Bc2 {[%clk 0:01:12]}  Nc5 {[%clk 0:01:49]} 22. Qf5 {[%clk 0:01:05]}  g6 {[%clk 0:01:49]} 23. Rxe8+ {[%clk 0:01:05]}  Qxe8 {[%clk 0:01:49]} 24. Qf4 {[%clk 0:01:04]}  Kg7 {[%clk 0:01:47]} 25. Qd4+ {[%clk 0:01:04]}  Kh7 {[%clk 0:01:36]} 26. Kf1 {[%clk 0:01:03]}  Qd7 {[%clk 0:01:29]} 27. h4 {[%clk 0:00:52]}  h5 {[%clk 0:01:29]} 28. Qf6 {[%clk 0:00:50]}  Re8 {[%clk 0:01:27]} 29. Re1 {[%clk 0:00:41]}  Rxe1+ {[%clk 0:01:26]} 30. Kxe1 {[%clk 0:00:42]}  Kg8 {[%clk 0:01:16]} 31. Kf1 {[%clk 0:00:28]}  Qg4 {[%clk 0:01:00]} 32. g3 {[%clk 0:00:19]}  Qc4+ {[%clk 0:00:55]} 33. Kg1 {[%clk 0:00:19]}  Qxd5 {[%clk 0:00:52]} 34. Qd8+ {[%clk 0:00:19]}  Kg7 {[%clk 0:00:53]} 35. Qxc7 {[%clk 0:00:19]}  Qd2 {[%clk 0:00:51]} 36. Bxg6 {[%clk 0:00:13]}  Kxg6 {[%clk 0:00:52]} 37. Qxa5 {[%clk 0:00:12]}  Qe1+ {[%clk 0:00:45]} 38. Kg2 {[%clk 0:00:11]}  Qe4+ {[%clk 0:00:45]} 39. Kg1 {[%clk 0:00:10]}  Qe5 {[%clk 0:00:40]} 40. Qb4 {[%clk 0:00:03]}  Nd3 {[%clk 0:00:36]} 41. Qb6 {[%clk 0:00:02]}  Kg7 {[%clk 0:00:29]} 0-1


[Site "https://www.chess.com"]